fUST/lending_fUST_20240901
["ID","MTS","AMOUNT","RATE_DAILY","PERIOD"]
[336835113,1725199844132,-3831.59,0.00024657,2]
[336835114,1725199844142,-500.0,0.00024657,2]
[336835115,1725199844154,-907.98,0.00024657,2]
[336835116,1725199844163,-500.0,0.00024657,2]
[336835117,1725199844172,-500.0,0.00024657,2]
[336835118,1725199844182,-786.78,0.00024657,2]
[336835119,1725199844192,-500.0,0.00024657,2]
[336835120,1725199844203,-500.0,0.00024657,2]
[336835121,1725199844214,-500.0,0.00024657,2]
[336835122,1725199844223,-1499.7,0.00024657,2]
[336835123,1725199844232,-500.0,0.00024657,2]
[336835124,1725199844243,-500.0,0.00024657,2]
[336835125,1725199844255,-500.0,0.00024657,2]
[336835126,1725199844264,-1098.46,0.00024657,2]
[336835127,1725199844274,-2302.5,0.00024657,2]
[336835128,1725199844284,-762.04,0.00024657,2]
[336835129,1725199844293,-502.73205741,0.00024657,2]
[336835130,1725199844303,-228.39434148,0.00024657,2]
[336835131,1725199844314,-628.12,0.00024657,2]
[336835132,1725199844324,-2475.35,0.00024657,2]
[336835133,1725199844333,-500.0,0.00024657,2]
[336835134,1725199844342,-849.23,0.00024657,2]
[336835135,1725199844351,-2538.46,0.00024657,2]
[336835136,1725199844360,-971.55,0.00024657,2]
[336835137,1725199844369,-500.0,0.00024657,2]
[336835138,1725199844379,-500.0,0.00024657,2]
[336835139,1725199844389,-732.97,0.00024657,2]
[336835140,1725199844398,-500.0,0.00024657,2]
[336835141,1725199844407,-619.24,0.00024657,2]
[336835142,1725199844416,-500.0,0.00024657,2]
[336835143,1725199844429,-500.0,0.00024657,2]
[336835144,1725199844439,-500.0,0.00024657,2]
[336835145,1725199844448,-500.0,0.00024657,2]
[336835146,1725199844457,-506.790149,0.00024657,2]
[336835147,1725199844467,-599.91,0.00024657,2]
[336835148,1725199844478,-399.17452007,0.00024657,2]
[336835149,1725199844487,-509.6084453,0.00024657,2]
[336835150,1725199844496,-1915.02,0.00024657,2]
[336835151,1725199844507,-500.0,0.00024657,2]
[336835152,1725199844516,-500.0,0.00024657,2]
[336835153,1725199844526,-500.0,0.00024657,2]
[336835154,1725199844537,-500.0,0.00024657,2]
[336835155,1725199844547,-502.5149893,0.00024657,2]
[336835156,1725199844556,-500.0,0.00024657,2]
[336835157,1725199844570,-500.0,0.00024657,2]
[336835158,1725199844579,-2554.68,0.00024657,2]
[336835159,1725199844588,-500.0,0.00024657,2]
[336835160,1725199844597,-1650.16,0.00024657,2]
[336835161,1725199844607,-500.0,0.00024657,2]
[336835162,1725199844617,-500.0,0.00024657,2]
[336835163,1725199844626,-668.07,0.00024657,2]
[336835164,1725199844635,-1117.56,0.00024657,2]
[336835165,1725199844644,-500.0,0.00024657,2]
[336835166,1725199844654,-1002.93,0.00024657,2]
[336835167,1725199844663,-500.0,0.00024657,2]
[336835168,1725199844672,-855.2,0.00024657,2]
[336835169,1725199844681,-2097.3,0.00024657,2]
[336835170,1725199844691,-1196.85,0.00024657,2]
[336835171,1725199844700,-290.40627938,0.00024657,2]
[336835172,1725199844710,-520.52677227,0.00024657,2]
[336835173,1725199844719,-2177.48,0.00024657,2]
[336835174,1725199844728,-500.0,0.00024657,2]
[336835175,1725199844737,-500.0,0.00024657,2]
[336835176,1725199844746,-500.0,0.00024657,2]
[336835177,1725199844755,-500.0,0.00024657,2]
[336835178,1725199844764,-3142.91,0.00024657,2]
[336835179,1725199844774,-500.0,0.00024657,2]
[336835180,1725199844785,-500.0,0.00024657,2]
[336835181,1725199844794,-599.98,0.00024657,2]
[336835182,1725199844804,-500.0,0.00024657,2]
[336835183,1725199844813,-500.0,0.00024657,2]
[336835184,1725199844823,-1619.87,0.00024657,2]
[336835185,1725199844832,-2526.73,0.00024657,2]
[336835186,1725199844842,-500.0,0.00024657,2]
[336835187,1725199844852,-500.0,0.00024657,2]
[336835188,1725199844861,-1309.92,0.00024657,2]
[336835189,1725199844870,-500.0,0.00024657,2]
[336835190,1725199844880,-820.37,0.00024657,2]
[336835191,1725199844889,-819.5,0.00024657,2]
[336835192,1725199844899,-500.0,0.00024657,2]
[336835193,1725199844908,-2780.99,0.00024657,2]
[336835194,1725199844917,-2118.63,0.00024657,2]
[336835195,1725199844927,-500.0,0.00024657,2]
[336835196,1725199844936,-500.0,0.00024657,2]
[336835198,1725199844946,-8945.21,0.00024657,2]
[336835199,1725199844955,-1962.72,0.00024657,2]
[336835200,1725199844964,-1692.32,0.00024657,2]
[336835201,1725199844974,-1358.76,0.00024657,2]
[336835203,1725199845103,-1460.48,0.00024657,2]
[336835204,1725199845114,-3619.51,0.00024657,2]
[336835205,1725199845124,-500.0,0.00024657,2]
[336835206,1725199845134,-500.0,0.00024657,2]
[336835207,1725199845143,-2164.32,0.00024657,2]
[336835208,1725199845153,-500.0,0.00024657,2]
[336835209,1725199845163,-500.0,0.00024657,2]
[336835210,1725199845172,-500.0,0.00024657,2]
[336835211,1725199845181,-1071.87,0.00024657,2]
[336835212,1725199845191,-1801.61,0.00024657,2]
[336835213,1725199845200,-823.04,0.00024657,2]
[336835214,1725199845209,-500.0,0.00024657,2]
[336835215,1725199845219,-500.0,0.00024657,2]
[336835216,1725199845228,-2383.76,0.00024657,2]
[336835217,1725199845238,-2313.8,0.00024657,2]
[336835218,1725199845247,-500.0,0.00024657,2]
[336835219,1725199845256,-500.0,0.00024657,2]
[336835220,1725199845265,-500.0,0.00024657,2]
[336835221,1725199845274,-6326.53,0.00024657,2]
[336835222,1725199845285,-500.0,0.00024657,2]
[336835223,1725199845295,-500.0,0.00024657,2]
[336835224,1725199845304,-152.01454984,0.00024657,2]
[336835225,1725199845313,-2147.57,0.00024657,2]
[336835226,1725199845322,-668.6,0.00024657,2]
[336835227,1725199845332,-500.0,0.00024657,2]
[336835228,1725199845341,-500.0,0.00024657,2]
[336835229,1725199845350,-1375.44,0.00024657,2]
[336835230,1725199845359,-1498.59,0.00024657,2]
[336835231,1725199845369,-500.0,0.00024657,2]
[336835232,1725199845378,-504.85190653,0.00024657,2]
[336835233,1725199845387,-500.0,0.00024657,2]
[336835234,1725199845397,-2528.56,0.00024657,2]
[336835235,1725199845406,-2306.88,0.00024657,2]
[336835236,1725199845415,-500.0,0.00024657,2]
[336835237,1725199845426,-547.31,0.00024657,2]
[336835238,1725199845438,-500.0,0.00024657,2]
[336835239,1725199845447,-500.0,0.00024657,2]
[336835240,1725199845456,-2048.19,0.00024657,2]
[336835241,1725199845466,-1982.92,0.00024657,2]
[336835242,1725199845476,-158.50944575,0.00024673,2]
[336835243,1725199845486,-420.0,0.00024761,2]
[336835244,1725199845496,-2030.64048,0.000248,5]
[336835245,1725199845507,-4559.65643826,0.00024887,2]
[336835246,1725199845517,-4087.29,0.0002492,2]
[336835247,1725199845526,-4087.29,0.0002492,2]
[336835248,1725199845537,-11299.5258586,0.0002492,3]
[336835249,1725199845546,-90396.2068687,0.00024921,3]
[336835250,1725199845555,-4087.29,0.0002493,2]
[336835251,1725199845564,-4087.29,0.0002493,2]
[336835252,1725199845573,-4087.29,0.0002493,2]
[336835253,1725199845583,-4087.29,0.0002493,2]
[336835254,1725199845592,-4087.29,0.0002493,2]
[336835255,1725199845602,-4087.29,0.0002493,2]
[336835256,1725199845611,-4087.29,0.0002493,2]
[336835257,1725199845621,-4087.29,0.0002493,2]
[336835258,1725199845631,-4087.46708259,0.0002493,2]
[336835259,1725199845642,-500.0,0.0002493,2]
[336835260,1725199845653,-13995.75689459,0.00024931,11]
[336835261,1725199845663,-540.93524496,0.00024931,2]
[336835262,1725199845672,-500.0,0.00024931,2]
[336835263,1725199845681,-500.0,0.00024931,2]
[336835264,1725199845691,-500.0,0.00024931,2]
[336835265,1725199845700,-505.35678504,0.00024931,2]
[336835266,1725199845709,-670.18,0.00024931,2]
[336835267,1725199845719,-500.0,0.00024931,2]
[336835268,1725199845729,-500.0,0.00024931,2]
[336835269,1725199845738,-500.0,0.00024931,2]
[336835270,1725199845748,-500.0,0.00024931,2]
[336835271,1725199845759,-500.0,0.00024931,2]
[336835272,1725199845768,-500.0,0.00024931,2]
[336835273,1725199845778,-500.0,0.00024931,2]
[336835274,1725199845787,-500.0,0.00024931,2]
[336835275,1725199845796,-500.0,0.00024931,2]
[336835276,1725199845806,-500.0,0.00024931,2]
[336835277,1725199845815,-500.0,0.00024931,2]
[336835278,1725199845824,-500.0,0.00024931,2]
[336835279,1725199845834,-500.0,0.00024931,2]
[336835280,1725199845843,-500.0,0.00024931,2]
[336835281,1725199845853,-903.69,0.00024931,2]
[336835282,1725199845862,-500.0,0.00024931,2]
[336835283,1725199845871,-500.0,0.00024931,2]
[336835284,1725199845881,-500.0,0.00024931,2]
[336835285,1725199845890,-500.0,0.00024931,2]
[336835286,1725199845899,-500.0,0.00024931,2]
[336835287,1725199845909,-500.0,0.00024931,2]
[336835288,1725199845919,-500.0,0.00024931,2]
[336835289,1725199845928,-500.0,0.00024931,2]
[336835290,1725199845938,-500.0,0.00024931,2]
[336835291,1725199845948,-500.0,0.00024931,2]
[336835292,1725199845957,-500.0,0.00024931,2]
[336835293,1725199845966,-500.0,0.00024931,2]
[336835294,1725199845975,-500.1340863,0.00024931,2]
[336835296,1725199845985,-500.0,0.00024931,2]
[336835298,1725199845994,-500.0,0.00024931,2]
[336835300,1725199846003,-500.0,0.00024931,2]
[336835302,1725199846012,-500.0,0.00024931,2]
[336835304,1725199846022,-736.78,0.00024931,2]
[336835307,1725199846033,-500.0,0.00024931,2]
[336835308,1725199846045,-500.0,0.00024931,2]
[336835310,1725199846055,-500.0,0.00024931,2]
[336835312,1725199846065,-500.0,0.00024931,2]
[336835314,1725199846075,-625.05,0.00024931,2]
[336835315,1725199846084,-500.0,0.00024931,2]
[336835316,1725199846094,-500.0,0.00024931,2]
[336835317,1725199846103,-500.0,0.00024931,2]
[336835318,1725199846113,-500.0,0.00024931,2]
[336835319,1725199846122,-500.0,0.00024931,2]
[336835320,1725199846131,-500.0,0.00024931,2]
[336835322,1725199846141,-500.0,0.00024931,2]
[336835324,1725199846150,-500.0,0.00024931,2]
[336835327,1725199846160,-500.0,0.00024931,2]
[336835330,1725199846169,-500.0,0.00024931,2]
[336835334,1725199846179,-790.88,0.00024931,2]
[336835336,1725199846188,-506.54,0.00024931,2]
[336835339,1725199846198,-500.0,0.00024931,2]
[336835341,1725199846207,-504.72649526,0.00024931,2]
[336835344,1725199846217,-500.0,0.00024931,2]
[336835347,1725199846227,-500.0,0.00024931,2]
[336835349,1725199846236,-500.0,0.00024931,2]
[336835352,1725199846248,-500.0,0.00024931,2]
[336835354,1725199846257,-500.0,0.00024931,2]
[336835357,1725199846267,-500.0,0.00024931,2]
[336835359,1725199846277,-500.0,0.00024931,2]
[336835362,1725199846289,-500.0,0.00024931,2]
[336835365,1725199846305,-500.0,0.00024931,2]
[336835366,1725199846314,-500.0,0.00024931,2]
[336835369,1725199846323,-500.0,0.00024931,2]
[336835372,1725199846333,-1078.23,0.00024931,2]
[336835374,1725199846343,-500.0,0.00024931,2]
[336835376,1725199846352,-500.0,0.00024931,2]
[336835378,1725199846362,-809.65,0.00024931,2]
[336835380,1725199846371,-500.0,0.00024931,2]
[336835382,1725199846381,-500.0,0.00024931,2]
[336835383,1725199846391,-500.0,0.00024931,2]
[336835384,1725199846400,-500.0,0.00024931,2]
[336835386,1725199846410,-500.0,0.00024931,2]
[336835388,1725199846421,-500.0,0.00024931,2]
[336835390,1725199846433,-500.0,0.00024931,2]
[336835391,1725199846442,-1103.52,0.00024931,2]
[336835393,1725199846452,-500.0,0.00024931,2]
[336835394,1725199846462,-500.0,0.00024931,2]
[336835395,1725199846473,-500.0,0.00024931,2]
[336835396,1725199846483,-918.15,0.00024931,2]
[336835397,1725199846492,-500.0,0.00024931,2]
[336835398,1725199846501,-500.0,0.00024931,2]
[336835399,1725199846512,-500.0,0.00024931,2]
[336835400,1725199846522,-500.0,0.00024931,2]
[336835401,1725199846531,-561.91,0.00024931,2]
[336835402,1725199846544,-598.72166686,0.00024931,2]
[336835404,1725199846553,-500.0,0.00024931,2]
[336835406,1725199846563,-794.09,0.00024931,2]
[336835408,1725199846571,-500.0,0.00024931,2]
[336835409,1725199846581,-500.0,0.00024931,2]
[336835410,1725199846591,-500.0,0.00024931,2]
[336835411,1725199846601,-717.98,0.00024931,2]
[336835412,1725199846610,-500.0,0.00024931,2]
[336835413,1725199846620,-500.0,0.00024931,2]
[336835414,1725199846629,-500.0,0.00024931,2]
[336835415,1725199846639,-500.0,0.00024931,2]
[336835416,1725199846648,-500.0,0.00024931,2]
[336835417,1725199846657,-500.0,0.00024931,2]
[336835418,1725199846666,-500.0,0.00024931,2]
[336835419,1725199846676,-500.0,0.00024931,2]
[336835420,1725199846685,-592.84,0.00024931,2]
[336835421,1725199846694,-500.0,0.00024931,2]
[336835422,1725199846703,-500.0,0.00024931,2]
[336835423,1725199846713,-500.0,0.00024931,2]
[336835424,1725199846722,-500.0,0.00024931,2]
[336835425,1725199846731,-500.0,0.00024931,2]
[336835426,1725199846742,-500.0,0.00024931,2]
[336835427,1725199846752,-965.87,0.00024931,2]
[336835428,1725199846762,-500.0,0.00024931,2]
[336835429,1725199846772,-500.0,0.00024931,2]
[336835430,1725199846783,-500.0,0.00024931,2]
[336835431,1725199846794,-500.0,0.00024931,2]
[336835432,1725199846804,-1168.07,0.00024931,2]
[336835433,1725199846814,-500.0,0.00024931,2]
[336835434,1725199846823,-500.0,0.00024931,2]
[336835435,1725199846833,-500.0,0.00024931,2]
[336835436,1725199846843,-493.90787111,0.00024931,2]
[336835437,1725199846854,-500.0,0.00024931,2]
[336835438,1725199846864,-500.0,0.00024931,2]
[336835439,1725199846873,-500.0,0.00024931,2]
[336835440,1725199846883,-500.0,0.00024931,2]
[336835441,1725199846892,-500.0,0.00024931,2]
[336835442,1725199846901,-5703.93,0.00024931,2]
[336835443,1725199846911,-500.0,0.00024931,2]
[336835444,1725199846920,-500.0,0.00024931,2]
[336835445,1725199846929,-500.0,0.00024931,2]
[336835446,1725199846938,-606.52013561,0.00024931,2]
[336835447,1725199846949,-500.0,0.00024931,2]
[336835448,1725199846959,-500.0,0.00024931,2]
[336835449,1725199846970,-500.0,0.00024931,2]
[336835450,1725199846980,-1794.51,0.00024931,2]
[336835451,1725199846990,-500.0,0.00024931,2]
[336835452,1725199846999,-501.59859197,0.00024931,2]
[336835453,1725199847008,-500.0,0.00024931,2]
[336835454,1725199847017,-500.0,0.00024931,2]
[336835455,1725199847027,-500.0,0.00024931,2]
[336835456,1725199847039,-504.60701252,0.00024931,2]
[336835457,1725199847048,-588.96,0.00024931,2]
[336835458,1725199847058,-673.88,0.00024931,2]
[336835459,1725199847068,-500.0,0.00024931,2]
[336835460,1725199847078,-500.0,0.00024931,2]
[336835461,1725199847088,-500.0,0.00024931,2]
[336835462,1725199847098,-500.0,0.00024931,2]
[336835463,1725199847107,-500.0,0.00024931,2]
[336835464,1725199847116,-500.0,0.00024931,2]
[336835465,1725199847125,-504.9045242,0.00024931,2]
[336835466,1725199847134,-500.0,0.00024931,2]
[336835467,1725199847143,-500.0,0.00024931,2]
[336835468,1725199847153,-500.0,0.00024931,2]
[336835469,1725199847162,-500.0,0.00024931,2]
[336835470,1725199847171,-543.15,0.00024931,2]
[336835471,1725199847180,-500.0,0.00024931,2]
[336835472,1725199847189,-500.0,0.00024931,2]
[336835473,1725199847198,-500.0,0.00024931,2]
[336835474,1725199847208,-500.0,0.00024931,2]
[336835475,1725199847217,-633.46,0.00024931,2]
[336835476,1725199847226,-500.0,0.00024931,2]
[336835477,1725199847235,-500.0,0.00024931,2]
[336835478,1725199847245,-501.81214045,0.00024931,2]
[336835479,1725199847254,-500.0,0.00024931,2]
[336835480,1725199847264,-500.0,0.00024931,2]
[336835481,1725199847273,-500.0,0.00024931,2]
[336835482,1725199847283,-500.0,0.00024931,2]
[336835483,1725199847293,-686.0,0.00024931,2]
[336835484,1725199847303,-500.0,0.00024931,2]
[336835485,1725199847312,-500.0,0.00024931,2]
[336835486,1725199847321,-510.3445711,0.00024931,2]
[336835487,1725199847330,-500.0,0.00024931,2]
[336835488,1725199847339,-500.0,0.00024931,2]
[336835489,1725199847348,-500.0,0.00024931,2]
[336835490,1725199847357,-500.0,0.00024931,2]
[336835491,1725199847366,-978.16,0.00024931,2]
[336835492,1725199847376,-500.0,0.00024931,2]
[336835493,1725199847385,-500.0,0.00024931,2]
[336835494,1725199847394,-500.0,0.00024931,2]
[336835495,1725199847403,-1055.3,0.00024931,2]
[336835496,1725199847412,-500.0,0.00024931,2]
[336835497,1725199847421,-592.41,0.00024931,2]
[336835498,1725199847434,-500.0,0.00024931,2]
[336835499,1725199847444,-501.51833889,0.00024931,2]
[336835500,1725199847453,-200.0,0.00024931,2]
[336835501,1725199847463,-500.0,0.00024931,2]
[336835502,1725199847473,-500.0,0.00024931,2]
[336835503,1725199847482,-500.0,0.00024931,2]
[336835504,1725199847492,-500.0,0.00024931,2]
[336835505,1725199847503,-500.0,0.00024931,2]
[336835506,1725199847512,-500.0,0.00024931,2]
[336835507,1725199847522,-500.0,0.00024931,2]
[336835508,1725199847531,-775.25,0.00024931,2]
[336835509,1725199847541,-632.74,0.00024931,2]
[336835510,1725199847551,-500.0,0.00024931,2]
[336835511,1725199847560,-500.0,0.00024931,2]
[336835512,1725199847570,-500.0,0.00024931,2]
[336835513,1725199847689,-500.0,0.00024931,2]
[336835514,1725199847699,-500.0,0.00024931,2]
[336835515,1725199847708,-1110.61,0.00024931,2]
[336835516,1725199847718,-500.0,0.00024931,2]
[336835517,1725199847727,-512.48922995,0.00024931,2]
[336835518,1725199847737,-500.0,0.00024931,2]
[336835519,1725199847747,-501.97666087,0.00024931,2]
[336835520,1725199847756,-500.0,0.00024931,2]
[336835521,1725199847766,-500.0,0.00024931,2]
[336835522,1725199847775,-1504.04,0.00024931,2]
[336835523,1725199847785,-2530.67,0.00024931,2]
[336835524,1725199847795,-925.62,0.00024931,2]
[336835525,1725199847804,-509.47967589,0.00024931,2]
[336835526,1725199847813,-2025.72,0.00024931,2]
[336835527,1725199847823,-500.0,0.00024931,2]
[336835528,1725199847832,-500.0,0.00024931,2]
[336835529,1725199847841,-500.0,0.00024931,2]
[336835530,1725199847850,-521.82,0.00024931,2]
[336835531,1725199847860,-500.0,0.00024931,2]
[336835532,1725199847870,-501.40563138,0.00024931,2]
[336835533,1725199847879,-500.0,0.00024931,2]
[336835534,1725199847889,-500.0,0.00024931,2]
[336835535,1725199847898,-500.0,0.00024931,2]
[336835536,1725199847907,-500.0,0.00024931,2]
[336835537,1725199847916,-500.0,0.00024931,2]
[336835538,1725199847926,-1867.63,0.00024931,2]
[336835539,1725199847935,-500.0,0.00024931,2]
[336835540,1725199847945,-525.08,0.00024931,2]
[336835541,1725199847954,-500.0,0.00024931,2]
[336835542,1725199847963,-500.0,0.00024931,2]
[336835543,1725199847972,-500.0,0.00024931,2]
[336835544,1725199847981,-500.0,0.00024931,2]
[336835545,1725199847990,-500.0,0.00024931,2]
[336835546,1725199847999,-187.85323693,0.00024931,2]
[336835547,1725199848008,-647.82,0.00024931,2]
[336835548,1725199848017,-681.62,0.00024931,2]
[336835549,1725199848026,-500.0,0.00024931,2]
[336835550,1725199848037,-415.0712568,0.00024931,2]
[336835551,1725199848047,-500.0,0.00024931,2]
[336835552,1725199848057,-1239.16,0.00024931,2]
[336835553,1725199848067,-1957.83,0.00024931,2]
[336835554,1725199848076,-500.0,0.00024931,2]
[336835555,1725199848085,-500.0,0.00024931,2]
[336835556,1725199848095,-2101.38,0.00024931,2]
[336835557,1725199848104,-500.0,0.00024931,2]
[336835558,1725199848113,-1186.69,0.00024931,2]
[336835559,1725199848124,-500.0,0.00024931,2]
[336835560,1725199848133,-812.65,0.00024931,2]
[336835561,1725199848143,-500.0,0.00024931,2]
[336835562,1725199848152,-2374.34,0.00024931,2]
[336835563,1725199848162,-2736.75,0.00024931,2]
[336835564,1725199848172,-500.0,0.00024931,2]
[336835565,1725199848181,-500.0,0.00024931,2]
[336835566,1725199848190,-500.0,0.00024931,2]
[336835567,1725199848200,-500.0,0.00024931,2]
[336835568,1725199848210,-500.0,0.00024931,2]
[336835569,1725199848219,-1228.02,0.00024931,2]
[336835570,1725199848229,-500.0,0.00024931,2]
[336835571,1725199848238,-500.0,0.00024931,2]
[336835572,1725199848248,-2044.2,0.00024931,2]
[336835573,1725199848258,-624.99,0.00024931,2]
[336835574,1725199848268,-500.0,0.00024931,2]
[336835575,1725199848277,-3027.3,0.00024931,2]
[336835576,1725199848286,-1938.14,0.00024931,2]
[336835577,1725199848295,-500.0,0.00024931,2]
[336835578,1725199848304,-500.0,0.00024931,2]
[336835579,1725199848314,-500.0,0.00024931,2]
[336835580,1725199848323,-500.0,0.00024931,2]
[336835581,1725199848342,-500.0,0.00024931,2]
[336835582,1725199848356,-582.99,0.00024931,2]
[336835583,1725199848366,-500.0,0.00024931,2]
[336835584,1725199848376,-614.0,0.00024931,2]
[336835585,1725199848386,-500.0,0.00024931,2]
[336835586,1725199848396,-500.0,0.00024931,2]
[336835587,1725199848409,-863.32,0.00024931,2]
[336835588,1725199848419,-597.31,0.00024931,2]
[336835589,1725199848433,-500.0,0.00024931,2]
[336835590,1725199848443,-500.0,0.00024931,2]
[336835591,1725199848453,-500.0,0.00024931,2]
[336835592,1725199848464,-2945.44,0.00024931,2]
[336835593,1725199848475,-2552.27,0.00024931,2]
[336835594,1725199848485,-500.0,0.00024931,2]
[336835595,1725199848495,-500.0,0.00024931,2]
[336835596,1725199848506,-587.5167475,0.00024931,2]
[336835597,1725199848516,-879.06,0.00024931,2]
[336835598,1725199848526,-500.0,0.00024931,2]
[336835599,1725199848538,-2778.79,0.00024931,2]
[336835600,1725199848548,-500.0,0.00024931,2]
[336835601,1725199848559,-500.0,0.00024931,2]
[336835602,1725199848569,-500.0,0.00024931,2]
[336835603,1725199848579,-11341.25,0.00024931,2]
[336835604,1725199848589,-500.0,0.00024931,2]
[336835605,1725199848600,-500.0,0.00024931,2]
[336835606,1725199848610,-596.65,0.00024931,2]
[336835607,1725199848621,-500.0,0.00024931,2]
[336835608,1725199848630,-1158.89,0.00024931,2]
[336835609,1725199848640,-500.0,0.00024931,2]
[336835610,1725199848649,-500.0,0.00024931,2]
[336835611,1725199848659,-500.0,0.00024931,2]
[336835612,1725199848669,-500.0,0.00024931,2]
[336835613,1725199848679,-2647.07,0.00024931,2]
[336835614,1725199848688,-500.0,0.00024931,2]
[336835615,1725199848698,-500.0,0.00024931,2]
[336835616,1725199848708,-543.55,0.00024931,2]
[336835617,1725199848717,-500.0,0.00024931,2]
[336835618,1725199848728,-3668.07,0.00024931,2]
[336835619,1725199848738,-500.0,0.00024931,2]
[336835620,1725199848747,-501.72252859,0.00024931,2]
[336835621,1725199848759,-1006.3,0.00024931,2]
[336835622,1725199848768,-632.85,0.00024931,2]
[336835623,1725199848779,-500.0,0.00024931,2]
[336835624,1725199848791,-500.0,0.00024931,2]
[336835625,1725199848800,-500.0,0.00024931,2]
[336835626,1725199848810,-2595.4,0.00024931,2]
[336835627,1725199848820,-500.0,0.00024931,2]
[336835628,1725199848829,-500.0,0.00024931,2]
[336835629,1725199848839,-500.0,0.00024931,2]
[336835630,1725199848848,-3831.59,0.00024931,2]
[336835631,1725199848858,-500.0,0.00024931,2]
[336835632,1725199848867,-907.98,0.00024931,2]
[336835633,1725199848877,-500.0,0.00024931,2]
[336835634,1725199848887,-500.0,0.00024931,2]
[336835635,1725199848897,-786.78,0.00024931,2]
[336835636,1725199848906,-500.0,0.00024931,2]
[336835637,1725199848916,-500.0,0.00024931,2]
[336835638,1725199848925,-500.0,0.00024931,2]
[336835639,1725199848935,-1499.7,0.00024931,2]
[336835640,1725199848944,-500.0,0.00024931,2]
[336835641,1725199848954,-500.0,0.00024931,2]
[336835642,1725199848968,-501.04238566,0.00024931,2]
[336835643,1725199848978,-1098.46,0.00024931,2]
[336835644,1725199848988,-2302.5,0.00024931,2]
[336835645,1725199848998,-762.04,0.00024931,2]
[336835646,1725199849008,-628.12,0.00024931,2]
[336835647,1725199849018,-2475.35,0.00024931,2]
[336835648,1725199849027,-500.0,0.00024931,2]
[336835649,1725199849038,-849.23,0.00024931,2]
[336835650,1725199849047,-2538.46,0.00024931,2]
[336835651,1725199849057,-500.0,0.00024931,2]
[336835652,1725199849067,-288.07190171,0.00024931,2]
[336835653,1725199849077,-971.55,0.00024931,2]
[336835654,1725199849087,-732.97,0.00024931,2]
[336835655,1725199849098,-500.0,0.00024931,2]
[336835656,1725199849108,-619.24,0.00024931,2]
[336835657,1725199849120,-500.0,0.00024931,2]
[336835658,1725199849130,-500.0,0.00024931,2]
[336835659,1725199849140,-500.0,0.00024931,2]
[336835660,1725199849151,-500.0,0.00024931,2]
[336835661,1725199849161,-599.91,0.00024931,2]
[336835662,1725199849171,-1915.02,0.00024931,2]
[336835663,1725199849181,-500.0,0.00024931,2]
[336835664,1725199849191,-500.0,0.00024931,2]
[336835665,1725199849200,-500.0,0.00024931,2]
[336835666,1725199849211,-500.0,0.00024931,2]
[336835667,1725199849220,-500.0,0.00024931,2]
[336835668,1725199849230,-2554.68,0.00024931,2]